bitfinex/quotes_ETHUSD_20251009
["timestamp","ask_amount","ask_price","bid_price","bid_amount"]
[1760032116747,2.31498402,4319.7,4319.1,9.007]
[1760032117148,0.007,4319.9,4319.1,9.007]
[1760032117335,2.32190627,4319.9,4319.2,0.02315243]
[1760032117535,0.007,4319.9,4319.2,0.02315243]
[1760032117736,0.6666,4319.8,4319.3,9.007]
[1760032117963,2.31512171,4319.5,4319.3,9.007]
[1760032118363,2.74683636,4319.4,4319.3,9.007]
[1760032119266,0.4317,4319.4,4319.3,9.007]
[1760032119692,2.74683636,4319.4,4319.3,9.007]
[1760032120563,2.74683636,4319.4,4319.0,0.001]
[1760032120564,2.31529716,4319.1,4319.0,0.001]
[1760032120760,2.31529716,4319.1,4319.0,6.601]
[1760032120951,2.74699716,4319.1,4319.0,6.601]
[1760032122562,0.4317,4319.1,4319.0,6.601]
[1760032122761,2.31529716,4319.1,4319.0,6.601]
[1760032123479,0.2349,4319.8,4319.0,6.601]
[1760032123646,0.007,4319.9,4319.0,6.601]
[1760032123974,0.007,4319.9,4319.1,0.39933203]
[1760032124176,2.31502903,4319.7,4319.2,6.6]
[1760032124545,0.007,4319.9,4319.3,0.48025189]
[1760032124744,0.007,4319.9,4319.4,6.6]
[1760032125447,0.002,4319.8,4319.4,6.6]
[1760032128982,0.4512,4319.7,4319.4,6.6]
[1760032129184,0.4512,4319.6,4319.4,6.6]
[1760032129549,2.31498189,4319.7,4319.4,6.6]
[1760032129746,0.4512,4319.6,4319.4,6.6]
[1760032130053,2.76628276,4319.5,4319.4,6.6]
[1760032131512,0.002,4319.8,4319.4,6.6]
[1760032131813,2.31501478,4319.7,4319.4,6.6]
[1760032132014,0.002,4319.8,4319.4,6.6]
[1760032132179,2.31693492,4319.8,4319.4,6.6]
[1760032133820,0.002,4319.8,4319.4,6.6]
[1760032138078,0.002,4319.8,4319.5,0.438]
[1760032138379,0.002,4319.8,4319.6,2.407]
[1760032138979,0.4346,4319.8,4319.6,2.407]
[1760032139221,0.002,4319.8,4319.7,6.599]
[1760032139418,0.002,4319.8,4319.7,9.006]
[1760032139419,2.31692198,4319.8,4319.7,9.006]
[1760032139828,2.74952198,4319.8,4319.7,9.006]
[1760032141487,2.7495245,4319.8,4319.7,6.598]
[1760032142904,0.4346,4319.8,4319.7,6.598]
[1760032143117,2.74952198,4319.8,4319.7,6.598]
[1760032143930,0.002,4319.8,4319.7,6.598]
[1760032144418,2.31692198,4319.8,4319.7,6.598]
[1760032145186,0.002,4319.8,4319.7,6.598]
[1760032145925,2.31692198,4319.8,4319.7,6.598]
[1760032146105,0.002,4319.8,4319.7,6.598]
[1760032149230,0.002,4319.8,4319.7,10.04498881]
[1760032149552,0.002,4319.8,4319.7,10.48298881]
[1760032152131,0.002,4319.8,4319.7,1.13201324]
[1760032152299,0.002,4319.8,4319.7,9.004]
[1760032152504,0.4346,4319.8,4319.7,9.004]
[1760032152829,2.74952198,4319.8,4319.7,9.004]
[1760032153399,0.4346,4319.8,4319.7,9.004]
[1760032153595,0.002,4319.8,4319.7,9.004]
[1760032153838,0.002,4319.8,4319.7,10.8672]
[1760032154213,0.002,4319.8,4319.7,13.18217557]
[1760032154611,0.002,4319.8,4319.7,10.8672]
[1760032156249,0.4346,4319.8,4319.7,6.597]
[1760032156406,0.4346,4319.8,4319.7,9.004]
[1760032157537,0.002,4319.8,4319.7,9.004]
[1760032158237,0.4346,4319.8,4319.7,9.004]
[1760032158737,0.002,4319.8,4319.7,9.004]
[1760032159439,2.31692198,4319.8,4319.7,9.004]
[1760032159745,0.002,4319.8,4319.7,9.004]
[1760032161159,0.4346,4319.8,4319.7,9.004]
[1760032161385,0.002,4319.8,4319.7,9.004]
[1760032165643,2.74952198,4319.8,4319.7,9.003]
[1760032166465,0.4346,4319.8,4319.7,9.003]
[1760032166772,0.002,4319.8,4319.7,9.003]
[1760032167362,2.31692198,4319.8,4319.7,9.003]
[1760032167563,0.002,4319.8,4319.7,9.003]
[1760032169678,2.31692198,4319.8,4319.7,9.003]
[1760032169989,0.002,4319.8,4319.7,9.003]
[1760032170488,2.31692198,4319.8,4319.7,9.003]
[1760032170929,2.31529716,4319.1,4319.0,0.001]
[1760032171200,2.31529716,4319.1,4319.0,6.596]
[1760032171354,2.77589716,4319.1,4319.0,6.596]
[1760032174103,2.31529716,4319.1,4319.0,6.596]
[1760032174889,2.77589716,4319.1,4319.0,6.596]
[1760032175693,2.31529716,4319.1,4319.0,6.596]
[1760032175991,2.77589716,4319.1,4319.0,6.596]
[1760032178694,2.31529716,4319.1,4319.0,6.596]
[1760032180722,2.77589716,4319.1,4319.0,6.596]
[1760032181504,2.31529716,4319.1,4319.0,6.596]
[1760032181868,2.77589716,4319.1,4319.0,6.596]
[1760032184223,0.002,4319.8,4319.0,7.4964]
[1760032184423,0.002,4319.8,4319.1,10.11915297]
[1760032184627,0.002,4319.8,4319.1,10.096]
[1760032184938,0.002,4319.8,4319.0,7.4964]
[1760032184939,0.002,4319.8,4319.0,0.9014]
[1760032185220,2.31504349,4319.6,4319.1,18.632]
[1760032185622,2.31695247,4319.8,4319.1,18.632]
[1760032185812,0.002,4319.8,4319.1,18.632]
[1760032186309,0.002,4319.8,4319.5,2.31503933]
[1760032186509,0.002,4319.8,4319.6,6.61715029]
[1760032186712,0.002,4319.8,4319.7,0.89321896]
[1760032187294,0.002,4319.8,4319.7,1.35791896]
[1760032187496,0.002,4319.8,4319.7,3.67289453]
[1760032189447,0.002,4319.8,4319.7,1.35791896]
[1760032189795,0.002,4319.8,4319.7,0.89321896]
[1760032190238,0.002,4319.8,4319.7,3.20819453]
[1760032190397,0.002,4319.8,4319.7,3.67289453]
[1760032190798,0.002,4319.8,4319.7,3.69604428]
[1760032191022,0.002,4319.8,4319.7,3.67289453]
[1760032192406,0.002,4319.8,4319.7,1.35791896]
[1760032192698,0.002,4319.8,4319.7,3.20819453]
[1760032193846,0.002,4319.8,4319.7,3.67289453]
[1760032194216,0.002,4319.8,4319.7,0.89321896]
[1760032194877,0.002,4319.8,4319.7,3.67289453]
[1760032195342,0.002,4319.8,4319.7,1.35791896]
[1760032195525,0.002,4319.8,4319.7,3.67289453]
[1760032196651,0.002,4319.8,4319.7,1.35791896]
[1760032197052,0.002,4319.8,4319.7,3.67289453]
[1760032198841,0.002,4319.8,4319.7,1.35791896]
[1760032199060,0.002,4319.8,4319.7,0.89321896]
[1760032199364,0.002,4319.8,4319.7,2.31497557]
[1760032199760,0.002,4319.8,4319.6,8.90899672]
[1760032200270,0.002,4319.8,4319.6,7.0369]
[1760032200768,0.002,4319.8,4319.6,6.594]
[1760032201666,0.002,4319.8,4319.7,0.46604975]
[1760032201856,0.002,4319.8,4319.7,3.4870303]
[1760032202843,0.002,4319.8,4319.7,3.46388055]
[1760032205672,0.002,4319.8,4319.7,5.38388055]
[1760032205881,0.002,4320.3,4319.8,4.23492198]
[1760032206190,0.002,4320.3,4320.2,2.31470765]
[1760032206389,0.002,4320.3,4320.2,12.40472183]
[1760032206589,0.002,4320.3,4320.2,12.38157476]
[1760032206772,0.002,4320.3,4320.2,12.82447476]
[1760032212313,0.002,4320.3,4320.2,3.47686711]
[1760032212491,0.002,4320.3,4320.2,17.653]
[1760032212880,0.002,4320.3,4320.2,20.41060765]
[1760032213917,0.002,4320.3,4320.2,1.92]
[1760032214092,0.002,4320.3,4320.2,13.67160765]
[1760032216027,0.002,4320.3,4320.2,9.4369]
[1760032216226,0.002,4320.3,4320.2,12.88923397]
[1760032218918,0.002,4320.3,4320.2,14.80923397]
[1760032219219,0.002,4320.3,4320.2,14.92407868]
[1760032220819,0.002,4320.3,4320.2,14.80923397]
[1760032222164,0.002,4320.3,4320.2,5.81523397]
[1760032222314,0.002,4320.3,4320.2,23.29660765]
[1760032222946,0.002,4320.3,4320.2,21.37660765]
[1760032223148,0.002,4320.3,4320.2,23.29560765]
[1760032225330,1e-08,4320.7,4320.2,23.29560765]
[1760032225530,0.6571,4323.3,4320.2,23.29560765]
[1760032225531,0.4425,4323.7,4320.8,2.31435259]
[1760032225748,0.94055438,4323.7,4321.8,4.71985071]
[1760032225923,0.4425,4323.7,4321.8,21.34385071]
[1760032226225,0.4425,4323.7,4321.8,21.78675071]
[1760032226425,0.005,4323.9,4321.9,4.23377355]
[1760032226653,0.005,4323.9,4322.6,2.42252247]
[1760032226942,0.005,4323.9,4322.6,14.0261246]
[1760032227143,0.005,4323.9,4322.6,14.4642246]
[1760032227744,2.31281218,4323.8,4322.6,14.4642246]
[1760032227944,0.005,4323.9,4322.6,14.4642246]
[1760032228512,0.005,4323.9,4322.6,14.93729951]
[1760032228721,2.31281592,4323.8,4322.6,14.93729951]
[1760032229461,0.005,4323.9,4322.6,14.93729951]
[1760032230134,2.31280948,4323.8,4322.6,14.93729951]
[1760032230328,0.2362,4323.9,4322.6,12.62387704]
[1760032230558,2.3127878,4323.8,4322.6,14.93729951]
[1760032230959,0.005,4323.9,4322.6,14.93729951]
[1760032231268,0.005,4323.9,4322.8,0.6336]
[1760032231470,0.005,4323.9,4322.8,11.50304859]
[1760032231673,0.005,4323.9,4322.8,11.91801544]
[1760032232073,1e-08,4322.9,4322.8,11.91801544]
[1760032232271,0.005,4323.9,4323.5,2.3129409]
[1760032232480,0.005,4323.9,4323.5,21.41553674]
[1760032232773,0.005,4323.9,4323.5,21.85363674]
[1760032234338,0.005,4323.9,4323.5,23.77363674]
[1760032234545,0.005,4323.9,4323.7,2.31283391]
[1760032234742,0.005,4323.9,4323.8,10.87090822]
[1760032234942,0.005,4323.9,4323.8,13.09955087]
[1760032235175,0.005,4323.9,4323.8,13.53765087]
[1760032237120,0.005,4323.9,4323.8,14.17125087]
[1760032237651,0.005,4323.9,4323.8,6.92265087]
[1760032237867,0.005,4323.9,4323.8,32.93688042]
[1760032239086,0.005,4323.9,4323.8,4.67088042]
[1760032239392,0.005,4323.9,4323.8,32.93588042]
[1760032239598,0.005,4323.9,4323.8,30.52988042]
[1760032239805,0.005,4323.9,4323.8,32.93488042]
[1760032240106,0.005,4323.9,4323.8,30.94130648]
[1760032240309,0.005,4323.9,4323.8,33.2540869]
[1760032240921,1.52830384,4327.5,4324.9,19.73956]
[1760032241089,1.52830384,4327.5,4327.4,2.3108564]
[1760032241398,1.52830384,4327.5,4327.4,2.9917]
[1760032241607,1.52830384,4327.5,4327.4,3.21536056]
[1760032241786,1.52830384,4327.5,4327.4,15.62250416]
[1760032241983,1.52830384,4327.5,4327.4,0.67567383]
[1760032242170,3.83910684,4327.5,4327.4,0.20926967]
[1760032242370,1.95830384,4327.5,4327.4,2.529]
[1760032242596,4.26910684,4327.5,4327.4,2.529]
[1760032243891,3.83910684,4327.5,4327.4,2.529]
[1760032244829,4.26910684,4327.5,4327.4,2.529]
[1760032245030,3.83910684,4327.5,4327.4,2.529]
[1760032245617,1.52830384,4327.5,4327.4,2.529]
[1760032246439,3.84110684,4327.5,4327.4,2.529]
[1760032247634,2.31107002,4327.0,4326.9,4.538]
[1760032249196,2.94461661,4327.1,4326.6,2.404]
[1760032249448,2.31115242,4326.9,4326.6,2.404]
[1760032249744,2.31123026,4326.7,4326.6,2.404]
[1760032256549,2.56803026,4326.7,4326.6,2.404]
[1760032257056,0.2568,4327.1,4326.6,2.404]
[1760032257373,2.31123026,4326.7,4326.6,2.404]
[1760032258423,2.56803026,4326.7,4326.6,2.404]
[1760032261041,2.31123026,4326.7,4326.6,2.404]
[1760032261243,2.56803026,4326.7,4326.6,2.404]
[1760032262930,4.48803026,4326.7,4326.6,2.404]
[1760032265630,0.2568,4327.3,4326.6,2.405]
[1760032265854,2.31113313,4326.9,4326.6,2.405]
[1760032266054,0.2568,4327.3,4326.6,2.405]
[1760032266285,1.53030384,4327.5,4326.6,2.42811283]
[1760032266472,1.53030384,4327.5,4326.7,0.0231123]
[1760032266641,3.84110986,4327.5,4326.8,6.611]
[1760032266965,1.53030384,4327.5,4326.8,6.611]
[1760032267168,2.31100124,4327.2,4326.8,6.611]
[1760032267538,1.78710384,4327.5,4326.8,6.611]
[1760032268046,2.31096728,4327.2,4326.8,6.611]
[1760032268234,2.3109108,4327.3,4326.8,6.611]
[1760032268935,2.3109632,4327.2,4326.8,6.611]
[1760032269132,0.2568,4327.3,4326.8,6.611]
[1760032269351,0.2568,4327.2,4326.8,6.611]
[1760032269552,0.2568,4327.1,4326.8,6.611]
[1760032269757,2.31092415,4327.3,4326.8,6.611]
[1760032269966,2.31098799,4327.2,4326.8,6.611]
[1760032270172,1.53030384,4327.5,4326.8,6.611]
[1760032270373,2.31112343,4326.9,4326.8,6.611]
[1760032270876,2.56792343,4326.9,4326.8,6.611]
[1760032272663,0.2568,4326.9,4326.8,6.611]
[1760032272863,2.56792343,4326.9,4326.8,6.611]
[1760032273984,0.2568,4326.9,4326.6,2.405]
[1760032274168,2.31123026,4326.7,4326.6,2.405]
[1760032274342,2.56803026,4326.7,4326.6,4.744]
[1760032277363,2.31123026,4326.7,4326.6,4.744]
[1760032277678,2.08623026,4326.7,4326.6,4.744]
[1760032278050,2.34303026,4326.7,4326.6,4.744]
[1760032278654,2.31122711,4326.8,4326.6,4.744]
[1760032278844,2.31097234,4327.2,4326.6,4.744]
[1760032279049,0.2568,4327.3,4326.6,4.744]
[1760032279280,2.31112746,4326.9,4326.6,4.744]
[1760032279495,0.2568,4326.9,4326.6,4.744]
[1760032279663,2.31123026,4326.7,4326.6,4.744]
[1760032279849,2.56803026,4326.7,4326.6,4.744]
[1760032280675,2.56803026,4326.7,4326.6,0.001]
[1760032284758,3.20163026,4326.7,4326.6,0.001]
[1760032284960,5.12163026,4326.7,4326.6,0.001]
[1760032285797,2.5536,4326.6,4325.1,0.005]
[1760032285967,2.52583181,4325.2,4325.1,0.005]
[1760032286167,0.6336,4326.6,4325.1,0.005]
[1760032286370,2.77318591,4327.5,4325.2,2.42612031]
[1760032286371,0.274,4326.8,4325.2,2.42612031]
[1760032286572,1.92,4326.7,4325.3,2.22989203]
[1760032286876,2.31150604,4326.2,4325.4,2.3119243]
[1760032287079,0.274,4326.3,4325.3,1.79909203]
[1760032287394,2.31175735,4325.8,4325.2,2.403]
[1760032287707,0.274,4326.2,4325.2,2.403]
[1760032287708,2.31165772,4325.9,4325.3,0.02311978]
[1760032287905,0.274,4326.5,4325.3,0.02311978]
[1760032288083,2.3117985,4325.7,4325.2,2.403]
[1760032288277,2.3117985,4325.7,4325.2,2.8759]
[1760032288479,1.92,4326.7,4325.3,4.84015739]
[1760032288830,1.92,4326.8,4325.3,4.81706758]
[1760032289101,2.31155638,4326.1,4325.3,4.81707254]
[1760032289400,2.31165591,4326.0,4325.3,2.50510371]
[1760032289599,2.31165591,4326.0,4325.4,2.00421037]
[1760032289900,2.31168046,4325.9,4325.5,0.02311871]
[1760032290077,2.31170881,4325.9,4325.5,0.02311871]
[1760032290281,2.31170881,4325.9,4325.4,2.00421037]
[1760032290282,2.31182329,4325.6,4325.2,2.403]
[1760032290501,2.31197835,4325.3,4325.2,2.403]
[1760032290702,2.58537835,4325.3,4325.2,2.403]
[1760032290903,2.31197835,4325.3,4325.2,2.403]
[1760032291827,2.58537835,4325.3,4325.2,2.403]
[1760032292323,2.31203181,4325.2,4325.1,0.005]
[1760032292632,1.92,4326.8,4325.1,0.005]
[1760032292831,2.31171112,4325.8,4325.1,0.005]
[1760032293325,2.31181801,4325.6,4325.1,0.005]
[1760032293493,2.31197835,4325.3,4325.2,4.587]
[1760032293694,2.58427835,4325.3,4325.2,4.587]
[1760032297217,2.31203181,4325.2,4325.1,0.005]
[1760032298037,2.57203181,4325.2,4325.1,0.005]
[1760032300553,5.12563181,4325.2,4325.1,0.005]
[1760032300858,5.12563181,4325.2,4325.1,1e-08]
[1760032301155,2.312513,4324.3,4324.2,2.404]
[1760032301321,2.572513,4324.3,4324.2,2.404]
[1760032302152,2.31256648,4324.2,4324.1,0.005]
[1760032302355,2.94616648,4324.2,4324.1,0.005]
[1760032302559,3.20616648,4324.2,4324.1,0.005]
[1760032302757,5.12616648,4324.2,4324.1,1e-08]
[1760032303346,0.26,4324.2,4324.1,1e-08]
[1760032303728,2.31229911,4324.7,4324.1,0.66050001]
[1760032303958,2.31244897,4324.5,4324.1,1e-08]
[1760032304261,2.312513,4324.3,4324.2,2.404]
[1760032304556,2.31247234,4324.4,4324.2,2.404]
[1760032304756,2.312513,4324.3,4324.2,2.404]
[1760032305260,2.31246527,4324.4,4324.2,2.404]
[1760032305456,2.312513,4324.3,4324.2,2.404]
[1760032305663,2.31246906,4324.4,4324.2,2.404]
[1760032305956,2.312513,4324.3,4324.2,2.404]
[1760032306725,2.572513,4324.3,4324.2,2.404]
[1760032308330,2.94616648,4324.2,4324.1,1e-08]
[1760032308765,3.20616648,4324.2,4324.1,1e-08]
[1760032310150,16.55480108,4324.2,4324.1,1e-08]
[1760032311400,2.31256648,4324.2,4324.1,1e-08]
[1760032311568,2.57256648,4324.2,4324.1,1e-08]
[1760032311937,3.20616648,4324.2,4324.1,1e-08]
[1760032314847,3.70207312,4324.2,4324.1,1e-08]
[1760032315793,2.9464874,4323.6,4323.1,1e-08]
[1760032316095,5.0977014,4323.2,4323.1,1e-08]
[1760032316590,5.3579014,4323.2,4323.1,1e-08]
[1760032317116,5.47578384,4323.2,4323.1,1e-08]
[1760032317404,12.10478384,4323.2,4323.1,1e-08]
[1760032317605,5.3579014,4323.2,4323.1,1e-08]
[1760032318162,0.226,4324.4,4323.1,2.55900001]
[1760032318361,0.2651,4323.6,4323.2,0.2559]
[1760032318594,0.2651,4323.5,4323.1,2.55900001]
[1760032318775,2.3131014,4323.2,4323.1,2.55900001]
[1760032318959,2.5782014,4323.2,4323.1,2.55900001]
[1760032320513,0.2651,4323.7,4323.1,2.55900001]
[1760032320863,2.3130479,4323.3,4323.1,2.55900001]
[1760032321194,2.5782014,4323.2,4323.1,1e-08]
[1760032322592,3.2118014,4323.2,4323.1,1e-08]
[1760032322990,5.1318014,4323.2,4323.1,1e-08]
[1760032323186,16.560436,4323.2,4323.1,1e-08]
[1760032323411,17.05643479,4323.2,4323.1,1e-08]
[1760032323712,16.560436,4323.2,4323.1,1e-08]
[1760032324016,17.05642175,4323.2,4323.1,1e-08]
[1760032324215,5.1318014,4323.2,4323.1,1e-08]
[1760032324712,11.7858014,4323.2,4323.1,1e-08]
[1760032325609,12.28175566,4323.2,4323.1,1e-08]
[1760032327203,6.25015342,4323.2,4323.1,1e-08]
[1760032327405,5.62775566,4323.2,4323.1,1e-08]
[1760032327598,26.69289997,4323.2,4323.1,1e-08]
[1760032328118,26.69189997,4323.2,4323.1,1e-08]
[1760032328321,17.63289997,4323.2,4323.1,1e-08]
[1760032328621,26.69189997,4323.2,4323.1,1e-08]
[1760032329122,26.69189997,4323.2,4322.1,0.005]
[1760032329123,2.31417198,4321.2,4320.7,0.005]
[1760032329618,2.58447198,4321.2,4320.7,0.005]
[1760032330322,3.21807198,4321.2,4320.7,0.005]
[1760032330528,0.9039,4321.2,4320.1,0.005]
[1760032330825,0.6336,4320.8,4320.1,0.005]
[1760032331024,2.94801277,4320.8,4320.1,0.005]
[1760032331195,0.2703,4320.7,4320.1,0.005]
[1760032331593,2.31470765,4320.2,4320.1,0.005]
[1760032331999,2.58500765,4320.2,4320.1,0.005]
[1760032333234,2.31481481,4320.0,4319.8,0.001]
[1760032333394,2.53966839,4319.9,4319.8,0.001]
[1760032333593,2.80956839,4319.9,4319.8,0.001]
[1760032334032,5.36316839,4319.9,4319.8,0.001]
[1760032334730,17.3683127,4319.9,4319.8,0.001]
[1760032339129,5.36316839,4319.9,4319.8,0.001]
[1760032339455,2.31462763,4320.4,4319.8,0.001]
[1760032339456,0.2694,4320.4,4319.8,0.001]
[1760032339747,2.31465407,4320.3,4319.8,0.001]
[1760032339898,2.31486839,4319.9,4319.8,0.001]
[1760032340296,3.21786839,4319.9,4319.8,0.001]
[1760032340700,2.94868276,4319.5,4319.4,0.001]
[1760032341117,3.21708276,4319.5,4319.4,0.001]
[1760032342906,2.58348276,4319.5,4319.4,0.001]
[1760032343242,2.31486839,4319.9,4319.4,6.755]
[1760032343396,0.2684,4320.4,4319.5,0.6756]
[1760032343844,2.31483933,4320.0,4319.5,0.6756]
[1760032344042,2.31482272,4320.0,4319.5,0.6756]
[1760032344244,0.2252,4320.5,4319.4,0.001]
[1760032344529,2.3149307,4319.8,4319.4,0.001]
[1760032345034,2.31498905,4319.7,4319.4,0.001]
[1760032345253,2.31508276,4319.5,4319.4,0.001]
[1760032345604,0.2684,4319.5,4319.4,0.001]
[1760032345809,2.58348276,4319.5,4319.4,0.001]
[1760032347113,0.2684,4319.5,4319.4,0.001]
[1760032347506,2.31491458,4319.9,4319.4,0.9082]
[1760032347850,2.31492615,4319.8,4319.4,0.9082]
[1760032348156,2.31493297,4319.8,4319.4,0.9082]
[1760032348307,2.31508276,4319.5,4319.4,2.408]
[1760032348507,2.58348276,4319.5,4319.4,6.297]
[1760032349207,2.58348276,4319.5,4319.4,0.001]
[1760032350527,14.54490616,4320.5,4319.4,0.001]
[1760032350528,2.3150674,4319.6,4319.4,0.001]
[1760032350727,2.58788276,4319.5,4319.4,0.001]
[1760032352513,2.31449882,4320.6,4319.4,0.001]
[1760032352768,2.31498921,4319.7,4319.4,0.001]
[1760032352917,2.3150449,4319.6,4319.4,0.001]
[1760032353115,0.2728,4320.3,4319.4,0.001]
[1760032353116,2.31498865,4319.7,4319.4,0.001]
[1760032353347,2.31484063,4320.0,4319.4,0.001]
[1760032353547,0.2728,4320.3,4319.4,0.001]
[1760032354044,2.31508276,4319.5,4319.4,0.001]
[1760032354527,2.58788276,4319.5,4319.4,0.001]
[1760032355243,2.31508276,4319.5,4319.4,0.001]
[1760032355414,2.58788276,4319.5,4319.4,0.001]
[1760032356464,0.6199188,4320.9,4319.4,0.001]
[1760032356688,2.3148895,4319.9,4319.4,0.471]
[1760032356860,0.278,4320.9,4319.6,2.31502916]
[1760032357059,2.31455281,4320.5,4319.6,2.3150213]
[1760032357262,2.59237861,4320.9,4319.6,2.3150213]
[1760032357460,0.278,4320.9,4319.7,0.27860213]
[1760032357757,2.31469463,4320.3,4319.7,0.27860213]
[1760032357976,2.31469463,4320.3,4319.5,0.47]
[1760032358160,2.31469463,4320.3,4319.4,0.001]
[1760032358361,0.2208,4321.0,4319.6,2.31498165]
[1760032358362,2.31448699,4320.7,4319.6,2.31498165]
[1760032358571,0.002,4320.0,4319.7,0.02314975]
[1760032358888,0.002,4320.0,4319.8,0.47]
[1760032359088,0.002,4320.0,4319.9,2.407]
[1760032360308,2.31681481,4320.0,4319.9,2.407]
[1760032360588,0.002,4320.0,4319.9,2.407]
[1760032362188,2.31681481,4320.0,4319.9,2.407]
[1760032362490,0.002,4320.0,4319.9,2.407]
[1760032364099,2.31681481,4320.0,4319.9,2.407]
[1760032364308,0.002,4320.0,4319.9,2.407]
[1760032364482,2.31681481,4320.0,4319.9,2.407]
[1760032370038,2.31501351,4319.7,4319.4,0.001]
[1760032370177,2.74821481,4320.0,4319.9,2.407]
[1760032372431,2.31681481,4320.0,4319.9,2.407]
[1760032373019,0.002,4320.0,4319.9,2.407]
[1760032373333,2.31681481,4320.0,4319.9,2.407]
[1760032374432,2.31508276,4319.5,4319.4,0.001]
[1760032374635,2.31508276,4319.5,4319.4,9.073]
[1760032374812,2.74648276,4319.5,4319.4,9.073]
[1760032376135,2.31508276,4319.5,4319.4,9.073]
[1760032377333,2.76558276,4319.5,4319.4,0.001]
[1760032377533,2.76558276,4319.5,4319.4,6.665]
[1760032377833,2.31508276,4319.5,4319.4,6.665]
[1760032378623,0.002,4320.0,4319.4,6.665]
[1760032378827,2.31508276,4319.5,4319.4,6.665]
[1760032379526,0.002,4320.0,4319.4,6.661]
[1760032379527,2.31503862,4319.6,4319.4,6.661]
[1760032379732,2.31503862,4319.6,4319.5,2.407]
[1760032380664,2.31508276,4319.5,4319.4,2.408]
[1760032380973,2.76558276,4319.5,4319.4,9.068]
[1760032381145,2.31508276,4319.5,4319.4,9.068]
[1760032382480,2.76558276,4319.5,4319.4,9.068]
[1760032382653,2.76558276,4319.5,4319.4,0.001]
[1760032382857,2.76558276,4319.5,4319.4,6.657]
[1760032383978,2.76558276,4319.5,4319.4,0.001]
[1760032383979,3.39918276,4319.5,4319.4,0.001]
[1760032384774,2.31508276,4319.5,4319.4,0.001]
[1760032384976,2.76558276,4319.5,4319.4,0.001]
[1760032387097,0.002,4320.0,4319.4,2.408]
[1760032387283,0.002,4320.0,4319.5,7.353]
[1760032387489,0.002,4320.0,4319.9,2.31486839]
[1760032387688,0.002,4320.0,4319.9,2.33801707]
[1760032387870,0.002,4320.0,4319.9,4.71411707]
[1760032388196,0.002,4320.0,4319.9,5.1434155]
[1760032388367,0.002,4320.0,4319.9,3.57438289]
[1760032388567,0.002,4320.0,4319.9,22.29553157]
[1760032388774,0.002,4320.0,4319.9,24.58725128]
[1760032391904,0.002,4320.0,4319.9,24.58225128]
[1760032392399,0.002,4320.0,4319.5,0.93575782]
[1760032392572,2.31682718,4320.0,4319.9,2.407]
[1760032392771,2.76122718,4320.0,4319.9,9.064]
[1760032393465,0.002,4320.0,4319.9,9.064]
[1760032393792,2.31681481,4320.0,4319.9,9.063]
[1760032394199,0.002,4320.0,4319.9,9.063]
[1760032394602,0.002,4320.0,4319.9,12.97176961]
[1760032394902,0.002,4320.0,4319.9,10.65690122]
[1760032395109,0.002,4320.0,4319.9,9.5191]
[1760032396773,0.002,4320.0,4319.9,11.83396839]
[1760032398194,0.002,4320.0,4319.9,12.29942324]
[1760032398483,0.002,4320.0,4319.9,14.91422232]
[1760032399209,0.002,4320.0,4319.9,18.686]
[1760032400187,0.002,4320.0,4319.9,19.1421]
[1760032400506,0.002,4320.0,4319.9,18.686]
[1760032401410,0.002,4320.0,4319.9,6.649]
[1760032401590,0.002,4320.0,4319.9,9.055]
[1760032401912,0.002,4320.0,4319.9,11.82596839]
[1760032402887,0.002,4320.0,4319.9,14.07773884]
[1760032404585,0.002,4320.0,4319.9,16.273]
[1760032404815,0.002,4320.0,4319.9,18.679]
[1760032405317,0.002,4320.0,4319.9,19.1351]
[1760032405698,0.002,4320.0,4319.9,18.679]
[1760032405895,0.002,4320.0,4319.5,3.46605736]
[1760032406225,2.31492198,4319.8,4319.6,2.406]
[1760032406513,2.75647557,4319.7,4319.6,5.509]
[1760032407898,2.31497557,4319.7,4319.6,5.509]
[1760032408213,4.86868276,4319.5,4319.4,0.001]
[1760032408515,4.23508276,4319.5,4319.4,4.924]
[1760032408703,4.67368276,4319.5,4319.4,4.924]
[1760032409414,5.30728276,4319.5,4319.4,0.001]
[1760032409997,3.38728276,4319.5,4319.4,0.001]
[1760032413088,2.75368276,4319.5,4319.4,0.001]
[1760032418948,0.4386,4319.5,4319.4,0.001]
[1760032419153,2.75368276,4319.5,4319.4,0.001]
[1760032420517,0.002,4320.0,4319.4,0.001]
[1760032420518,2.31496875,4319.8,4319.4,0.001]
[1760032420722,0.002,4320.0,4319.4,0.001]
[1760032421019,0.002,4320.0,4319.5,2.31507304]
[1760032421216,0.002,4320.0,4319.6,6.391]
[1760032421437,0.002,4320.0,4319.6,6.8506]
[1760032421955,0.002,4320.0,4319.6,6.391]
[1760032423057,2.31682438,4320.0,4319.6,6.391]
[1760032423554,0.002,4320.0,4319.6,6.391]
[1760032423718,2.31508276,4319.5,4319.4,0.001]
[1760032424054,2.31504383,4319.6,4319.4,2.566]
[1760032424252,2.31496114,4319.8,4319.4,2.566]
[1760032424455,2.31497936,4319.7,4319.4,2.566]
[1760032424616,2.31503145,4319.6,4319.4,2.566]
[1760032424820,2.31502439,4319.7,4319.4,2.566]
[1760032425014,0.4547,4319.6,4319.4,2.566]